fUSD/lending_fUSD_20240423
["ID","MTS","AMOUNT","RATE_DAILY","PERIOD"]
[323264103,1713856266509,-769.6,0.00012458,2]
[323264104,1713856266520,-155.92080556,0.00012466,2]
[323264105,1713856266530,-201.1590502,0.00012466,2]
[323264106,1713856266540,-158.24918205,0.00012466,2]
[323264107,1713856266550,-523.22217511,0.00012466,2]
[323264108,1713856266560,-263.95356208,0.00012466,2]
[323264109,1713856266570,-158.4174736,0.00012466,2]
[323264110,1713856266580,-156.01804584,0.00012466,2]
[323264111,1713856266590,-265.87727011,0.00012466,2]
[323264112,1713856266599,-311.63398776,0.00012466,2]
[323264113,1713856266609,-155.81405765,0.00012466,2]
[323264114,1713856266620,-223.7284623,0.00012466,2]
[323264115,1713856266630,-365.99550971,0.00012466,2]
[323264116,1713856266641,-96.33685701,0.00012467,2]
[323264117,1713856266958,-984.17158,0.0001199,2]
[323264118,1713856266967,-500.0,0.00011997,2]
[323264119,1713856266978,-31.82907655,0.00012,2]
[323264120,1713856266991,-952.34249345,0.00012,2]
[323264121,1713856267008,-500.0,0.00012271,2]
[323264122,1713856267027,-984.17157,0.0001231,2]
[323264123,1713856267038,-984.17158,0.0001246,2]
[323264124,1713856267048,-1746.11598476,0.00012467,2]
[323264125,1713856267058,-8390.92813179,0.00012468,2]
[323264126,1713856267078,-828.46681849,0.00012468,2]
[323264127,1713856267319,-4136.11404673,0.00012468,2]
[323264128,1713856267331,-3150.39333094,0.00012468,2]
[323264129,1713856267357,-911.72063401,0.00012468,2]
[323264130,1713856267367,-537.07638197,0.00012469,7]
[323264131,1713856267377,-238.74943207,0.00012469,2]
[323264132,1713856267386,-456.23594,0.00012469,2]
[323264133,1713856267395,-193.53025103,0.00012469,2]
[323264134,1713856267404,-500.0,0.0001247,2]
[323264135,1713856267414,-265.76037474,0.0001247,2]
[323264136,1713856267423,-2275.1183751,0.00012471,2]
[323264137,1713856267433,-1732.48369108,0.00012471,2]
[323264138,1713856267446,-299.15918262,0.00012471,2]
[323264139,1713856267455,-310.6017304,0.00012471,2]
[323264140,1713856267465,-14.80892447,0.00012478,2]
[323264141,1713856267477,-1740.45935677,0.00012478,2]
[323264142,1713856267487,-500.0,0.00012479,2]
[323264143,1713856267497,-2003.03272323,0.0001248,2]
[323264144,1713856267556,-298.79067199,0.00012255,2]
[323264145,1713856267566,-249.05109228,0.0001248,2]
[323264146,1713856267583,-47158.07608596,0.0001248,2]
[323264147,1713856267595,-729.84447546,0.0001248,2]
[323264148,1713856267607,-1767.88807089,0.0001248,2]
[323264149,1713856267626,-267.15423859,0.00011996,2]
[323264150,1713856267636,-213.01558202,0.0001248,2]
[323264151,1713856267697,290.40382031,0.00011039,2]
[323264152,1713856269077,205.39597181,0.00011039,2]
[323264153,1713856269849,280.66723176,0.00011039,2]
[323264154,1713856270123,288.4630602,0.00011039,2]
[323264155,1713856270938,299.59736826,8.831e-05,2]
[323264156,1713856271890,298.71922923,0.00011039,2]
[323264157,1713856323313,288.4630602,0.00011039,2]
[323264158,1713856341310,264.82979879,0.00011039,2]
[323264159,1713856343950,320.0216552,0.00011039,2]
[323264160,1713856344863,337.38618301,0.00011039,2]
[323264161,1713856350382,306.04689831,0.00011039,2]
[323264162,1713856357919,298.71922923,0.00011039,2]
[323264163,1713856358841,323.6720809,0.00011039,2]
[323264164,1713856359944,319.78189988,0.00011039,2]
[323264165,1713856460086,442.31,9.294e-05,2]
[323264166,1713856506649,769.4,0.00011189,2]
[323264167,1713856522170,183.23,8.928e-05,2]
[323264168,1713856594702,200.0,0.00011114,2]
[323264169,1713856637498,260.9,0.00011128,2]
[323264170,1713856637707,260.9,0.0001113,2]
[323264171,1713856637990,260.9,0.00011133,2]
[323264172,1713856638249,260.9,0.00011136,2]
[323264173,1713856638426,260.9,0.00011139,2]
[323264174,1713856638766,260.9,0.00011142,2]
[323264175,1713856638959,260.9,0.00011145,2]
[323264176,1713856639347,260.9,0.00011148,2]
[323264177,1713856639548,260.9,0.00011151,2]
[323264178,1713856639985,260.9,0.00011154,2]
[323264179,1713856640248,260.9,0.00011157,2]
[323264180,1713856640413,260.9,0.0001116,2]
[323264181,1713856640619,260.9,0.00011163,2]
[323264182,1713856640835,260.9,0.00011166,2]
[323264183,1713856641048,260.9,0.00011169,2]
[323264184,1713856641276,260.9,0.00011171,2]
[323264185,1713856641540,260.9,0.00011174,2]
[323264186,1713856641755,260.9,0.00011177,2]
[323264187,1713856641972,260.9,0.0001118,2]
[323264188,1713856642169,260.9,0.00011183,2]
[323264189,1713856668476,-1608.51939142,0.00011215,2]
[323264190,1713856668498,-4332.05548952,0.00011216,2]
[323264191,1713856674053,409.94,0.00011149,2]
[323264192,1713856684899,-166.96490034,0.00011222,2]
[323264193,1713856684920,-538.8881362,0.00011335,2]
[323264194,1713856684941,-162.88,0.00011336,2]
[323264195,1713856684962,-385.75,0.0001136,2]
[323264196,1713856684986,-158.18,0.0001145,2]
[323264197,1713856685010,-442.31,0.00011558,2]
[323264198,1713856685033,-1500.0,0.00011881,2]
[323264199,1713856685053,-1683.56,0.00011881,2]
[323264200,1713856685075,-166.96490033,0.00011898,2]
[323264201,1713856685098,-230.68102976,0.00011995,2]
[323264202,1713856685118,-2186.83220104,0.00011995,2]
[323264203,1713856685143,-667.12158,0.00011996,2]
[323264204,1713856685165,-2574.09273386,0.00011996,2]
[323264205,1713856685189,-711.95921991,0.00011996,2]
[323264206,1713856685211,-500.0,0.00011997,2]
[323264207,1713856685233,-500.0,0.00011997,2]
[323264208,1713856685258,-500.0,0.00011997,2]
[323264209,1713856685281,-500.0,0.00011997,2]
[323264210,1713856685302,-500.0,0.00011997,2]
[323264211,1713856685323,-500.0,0.00011997,2]
[323264212,1713856685343,-500.0,0.00011997,2]
[323264213,1713856685364,-500.0,0.00011997,2]
[323264214,1713856685385,-500.0,0.00011997,2]
[323264215,1713856685406,-495.16486114,0.00011997,2]
[323264216,1713856685427,-500.0,0.00011997,2]
[323264217,1713856685449,-500.0,0.00011997,2]
[323264218,1713856685471,-500.0,0.00011997,2]
[323264219,1713856685492,-298.57495682,0.00011997,2]
[323264220,1713856685518,-500.0,0.00011997,2]
[323264221,1713856685541,-621.89246833,0.00011997,2]
[323264222,1713856685562,-500.0,0.00011997,2]
[323264223,1713856685583,-500.0,0.00011997,2]
[323264224,1713856685605,-608.0,0.00011997,2]
[323264225,1713856685626,-199.84722261,0.00011997,2]
[323264226,1713856685646,-491.3398707,0.00011997,2]
[323264227,1713856685666,-197.87914419,0.00011997,2]
[323264228,1713856685686,-500.0,0.00011997,2]
[323264229,1713856685707,-500.0,0.00011997,2]
[323264230,1713856685728,-500.0,0.00011997,2]
[323264231,1713856685753,-500.0,0.00011997,2]
[323264232,1713856685774,-488.49229963,0.00011997,2]
[323264233,1713856734349,1852.42,0.00011199,2]
[323264234,1713856874863,256.83,0.00011169,2]
[323264235,1713856878601,361.27483711,0.00011199,2]
[323264236,1713856884912,323.73787086,0.00011199,2]
[323264237,1713856891432,10000.0,0.0001121,2]
[323264238,1713856896684,361.27483711,0.00011199,2]
[323264239,1713856902695,10000.0,0.0001121,2]
[323264240,1713856904906,323.60629094,0.00011199,2]
[323264241,1713856911588,10000.0,0.0001121,2]
[323264242,1713856918717,361.27483711,0.00011199,2]
[323264243,1713856921471,10000.0,0.0001121,2]
[323264244,1713856938605,360.96106439,0.00011199,2]
[323264245,1713856951281,513.77,9.254e-05,2]
[323264246,1713857018754,183.23,8.884e-05,2]
[323264247,1713857047651,384.48,0.00011073,2]
[323264258,1713857320208,2644.942405,0.00011159,2]
[323264259,1713857330864,195.97,0.00011107,2]
[323264260,1713857397165,170.88,0.00011076,2]
[323264262,1713857430159,155.0,0.0001121,2]
[323264271,1713857432209,-155.0,0.00011211,2]
[323264272,1713857432219,-363.77609591,0.00011212,2]
[323264273,1713857432228,-3383.39652627,0.00011394,2]
[323264274,1713857432541,-1200.05132482,0.00011394,2]
[323264275,1713857432550,-1296.4641019,0.00011395,2]
[323264276,1713857432559,-500.0,0.0001148,2]
[323264277,1713857432569,-500.0,0.0001148,2]
[323264278,1713857432578,-500.0,0.0001148,2]
[323264279,1713857432587,-254.28074787,0.0001148,2]
[323264280,1713857432603,-245.71925213,0.0001148,2]
[323264281,1713857432612,-500.0,0.0001148,2]
[323264282,1713857432621,-500.0,0.0001148,2]
[323264283,1713857432629,-497.37783872,0.0001148,2]
[323264284,1713857432668,-2.62216128,0.0001148,2]
[323264285,1713857432677,-500.0,0.0001148,2]
[323264286,1713857432686,-500.0,0.0001148,2]
[323264287,1713857432696,-500.0,0.0001148,2]
[323264288,1713857432704,-122.95088565,0.0001148,2]
[323264307,1713857438337,-329.5347003,0.0001148,2]
[323264308,1713857438349,-113.23441405,0.0001148,2]
[323264309,1713857438358,-358.16,0.0001148,2]
[323264310,1713857438368,-513.77,0.00011518,2]
[323264311,1713857438377,-1603.5019,0.00011896,2]
[323264312,1713857438386,-28260.343,0.00011897,2]
[323264313,1713857438395,-468.012358,0.00011897,2]
[323264314,1713857438406,-499.99,0.00011897,2]
[323264315,1713857438416,-265.76037475,0.00011986,2]
[323264316,1713857438425,-12129.72939478,0.00011994,2]
[323264317,1713857438435,-4332.05548952,0.00011995,2]
[323264318,1713857438444,-2509.94,0.00011995,2]
[323264319,1713857438454,-500.0,0.00011995,2]
[323264320,1713857438463,-546.4,0.00011995,2]
[323264321,1713857438472,-577.34,0.00011995,2]
[323264322,1713857438482,-1578.18,0.00011995,2]
[323264323,1713857438492,-500.0,0.00011995,2]
[323264324,1713857438501,-5016.81,0.00011995,2]
[323264325,1713857438510,-5836.54,0.00011995,2]
[323264326,1713857438520,-568.29,0.00011995,2]
[323264327,1713857438529,-500.0,0.00011995,2]
[323264328,1713857438538,-500.0,0.00011995,2]
[323264329,1713857438547,-10712.82,0.00011995,2]
[323264330,1713857438556,-500.0,0.00011995,2]
[323264331,1713857438566,-1313.55,0.00011995,2]
[323264332,1713857438575,-1429.35,0.00011995,2]
[323264333,1713857438584,-3884.71,0.00011995,2]
[323264334,1713857438593,-500.0,0.00011995,2]
[323264335,1713857438602,-500.0,0.00011995,2]
[323264337,1713857438611,-500.0,0.00011995,2]
[323264338,1713857438620,-12471.53,0.00011995,2]
[323264340,1713857438630,-582.47,0.00011995,2]
[323264342,1713857438639,-169.99078475,0.00011995,2]
[323264344,1713857438648,-1261.39,0.00011995,2]
[323264345,1713857438659,-532.11,0.00011995,2]
[323264346,1713857438668,-7409.21,0.00011995,2]
[323264347,1713857438677,-500.0,0.00011995,2]
[323264348,1713857438686,-1148.36,0.00011995,2]
[323264349,1713857438695,-500.0,0.00011995,2]
[323264350,1713857438705,-500.0,0.00011995,2]
[323264351,1713857438714,-500.0,0.00011995,2]
[323264352,1713857438723,-500.0,0.00011995,2]
[323264353,1713857438732,-1800.06,0.00011995,2]
[323264355,1713857438742,-500.0,0.00011995,2]
[323264357,1713857438750,-500.0,0.00011995,2]
[323264359,1713857438760,-500.0,0.00011995,2]
[323264361,1713857438769,-500.0,0.00011995,2]
[323264363,1713857438778,-854.99,0.00011995,2]
[323264365,1713857438787,-751.12,0.00011995,2]
[323264367,1713857438796,-500.0,0.00011995,2]
[323264369,1713857438805,-497.69127045,0.00011995,2]
[323264371,1713857438814,-167.32653408,0.00011996,2]
[323264373,1713857438824,-155.21727484,0.00011996,2]
[323264375,1713857438832,-157.27832228,0.00011996,2]
[323264377,1713857438841,-500.0,0.00011996,2]
[323264379,1713857438850,-503.74349775,0.00011996,2]
[323264381,1713857438859,-500.0,0.00011996,2]
[323264383,1713857438868,-500.0,0.00011996,2]
[323264385,1713857438878,-500.0,0.00011996,2]
[323264387,1713857438887,-500.0,0.00011996,2]
[323264389,1713857438897,-500.0,0.00011996,2]
[323264391,1713857438909,-500.0,0.00011996,2]
[323264392,1713857438918,-500.0,0.00011996,2]
[323264393,1713857438928,-500.0,0.00011996,2]
[323264394,1713857438937,-500.0,0.00011996,2]
[323264395,1713857438948,-500.0,0.00011996,2]
[323264396,1713857438957,-498.3639751,0.00011996,2]
[323264397,1713857438966,-501.75128079,0.00011996,2]
[323264398,1713857438976,-500.0,0.00011996,2]
[323264399,1713857438985,-500.0,0.00011996,2]
[323264400,1713857438994,-500.0,0.00011996,2]
[323264401,1713857439003,-993.6,0.00011996,2]
[323264402,1713857439012,-504.30162004,0.00011996,2]
[323264403,1713857439021,-500.0,0.00011996,2]
[323264404,1713857439030,-500.0,0.00011996,2]
[323264405,1713857439039,-500.0,0.00011996,2]
[323264406,1713857439048,-503.71363099,0.00011996,2]
[323264407,1713857439074,-291.06607611,0.00011996,2]
[323264408,1713857439092,-500.0,0.00011996,2]
[323264409,1713857439101,-304.26435674,0.00011996,2]
[323264410,1713857439110,-1693.36,0.00011996,2]
[323264411,1713857439121,-500.0,0.00011996,2]
[323264412,1713857439130,-1068.35,0.00011996,2]
[323264413,1713857439139,-500.0,0.00011996,2]
[323264414,1713857439148,-500.0,0.00011996,2]
[323264416,1713857439162,-500.0,0.00011996,2]
[323264418,1713857439171,-1167.34,0.00011996,2]
[323264420,1713857439180,-500.0,0.00011996,2]
[323264422,1713857439190,-500.0,0.00011996,2]
[323264424,1713857439199,-282.75938724,0.00011996,2]
[323264426,1713857439208,-500.0,0.00011996,2]
[323264428,1713857439216,-500.0,0.00011996,2]
[323264430,1713857439225,-500.0,0.00011996,2]
[323264432,1713857439234,-500.0,0.00011996,2]
[323264434,1713857439242,-500.0,0.00011996,2]
[323264436,1713857439251,-500.0,0.00011996,2]
[323264438,1713857439260,-500.0,0.00011996,2]
[323264440,1713857439272,-500.0,0.00011996,2]
[323264442,1713857439280,-500.0,0.00011996,2]
[323264444,1713857439290,-503.09816844,0.00011996,2]
[323264446,1713857439298,-1121.77,0.00011996,2]
[323264448,1713857439307,-500.0,0.00011996,2]
[323264450,1713857439320,-504.73647205,0.00011996,2]
[323264452,1713857439329,-500.0,0.00011996,2]
[323264454,1713857439338,-500.0,0.00011996,2]
[323264456,1713857439346,-500.0,0.00011996,2]
[323264458,1713857439356,-500.0,0.00011996,2]
[323264460,1713857439366,-500.0,0.00011996,2]
[323264462,1713857439375,-434.96418336,0.00011996,2]
[323264464,1713857439384,-1021.81,0.00011996,2]
[323264466,1713857439394,-500.0,0.00011996,2]
[323264468,1713857439407,-500.0,0.00011996,2]
[323264470,1713857439416,-500.0,0.00011996,2]
[323264472,1713857439425,-500.0,0.00011996,2]
[323264474,1713857439434,-500.0,0.00011996,2]
[323264476,1713857439443,-500.0,0.00011996,2]
[323264478,1713857439452,-500.0,0.00011996,2]
[323264480,1713857439461,-500.0,0.00011996,2]
[323264482,1713857439471,-500.0,0.00011996,2]
[323264484,1713857439479,-500.0,0.00011996,2]
[323264486,1713857439489,-500.0,0.00011996,2]
[323264488,1713857439499,-500.0,0.00011996,2]
[323264490,1713857439508,-500.0,0.00011996,2]
[323264492,1713857439517,-500.0,0.00011996,2]
[323264494,1713857439526,-504.91672357,0.00011996,2]
[323264496,1713857439536,-624.96617444,0.00011996,2]
[323264498,1713857439545,-500.0,0.00011996,2]
[323264500,1713857439554,-500.0,0.00011996,2]
[323264502,1713857439563,-500.0,0.00011996,2]
[323264504,1713857439572,-500.0,0.00011996,2]
[323264506,1713857439581,-500.0,0.00011996,2]
[323264508,1713857439590,-500.0,0.00011996,2]
[323264510,1713857439600,-609.2,0.00011996,2]
[323264512,1713857439609,-500.0,0.00011996,2]
[323264514,1713857439618,-500.0,0.00011996,2]
[323264516,1713857439627,-500.0,0.00011996,2]
[323264518,1713857439636,-500.0,0.00011996,2]
[323264520,1713857439645,-501.98197262,0.00011996,2]
[323264522,1713857439659,-505.26171624,0.00011996,2]
[323264524,1713857439668,-500.0,0.00011996,2]
[323264526,1713857439676,-500.0,0.00011996,2]
[323264528,1713857439686,-500.0,0.00011996,2]
[323264530,1713857439694,-527.3631521,0.00011996,2]
[323264532,1713857439703,-500.0,0.00011996,2]
[323264534,1713857439712,-500.0,0.00011996,2]
[323264536,1713857439720,-500.0,0.00011996,2]
[323264537,1713857439729,-555.3901913,0.00011996,2]
[323264539,1713857439738,-529.88033474,0.00011996,2]
[323264542,1713857439746,-500.0,0.00011996,2]
[323264544,1713857439756,-500.0,0.00011996,2]
[323264546,1713857439765,-503.91555752,0.00011996,2]
[323264548,1713857439774,-500.0,0.00011996,2]
[323264550,1713857439784,-501.21823171,0.00011996,2]
[323264552,1713857439793,-500.0,0.00011996,2]
[323264554,1713857439802,-500.0,0.00011996,2]
[323264556,1713857439811,-502.36814552,0.00011996,2]
[323264558,1713857439820,-1153.43,0.00011996,2]
[323264560,1713857439829,-500.0,0.00011996,2]
[323264562,1713857439838,-500.0,0.00011996,2]
[323264564,1713857439847,-500.0,0.00011996,2]
[323264566,1713857439856,-500.0,0.00011996,2]
[323264568,1713857439865,-500.0,0.00011996,2]
[323264570,1713857439874,-500.0,0.00011996,2]
[323264572,1713857439883,-500.0,0.00011996,2]
[323264574,1713857439892,-850.11,0.00011996,2]
[323264576,1713857439904,-501.08256497,0.00011996,2]
[323264578,1713857439914,-500.0,0.00011996,2]
[323264580,1713857439923,-501.86128044,0.00011996,2]
[323264581,1713857439932,-328.60425986,0.00011996,2]
[323264584,1713857439941,-503.39415504,0.00011996,2]
[323264585,1713857439951,-500.0,0.00011996,2]
[323264587,1713857439960,-518.88124678,0.00011996,2]
[323264591,1713857439969,-502.42167712,0.00011996,2]
[323264593,1713857439979,-500.0,0.00011996,2]
[323264595,1713857439988,-1836.15,0.00011996,2]
[323264597,1713857439997,-500.0,0.00011996,2]
[323264599,1713857440006,-500.90250241,0.00011996,2]
[323264601,1713857440015,-500.0,0.00011996,2]
[323264603,1713857440024,-500.0,0.00011996,2]
[323264605,1713857440033,-500.0,0.00011996,2]
[323264608,1713857440043,-503.30307418,0.00011996,2]
[323264611,1713857440052,-500.0,0.00011996,2]
[323264614,1713857440061,-500.0,0.00011996,2]
[323264617,1713857440070,-500.0,0.00011996,2]
[323264620,1713857440079,-500.0,0.00011996,2]
[323264623,1713857440088,-500.0,0.00011996,2]
[323264627,1713857440098,-500.0,0.00011996,2]
[323264630,1713857440107,-501.14815085,0.00011996,2]
[323264633,1713857440116,-615.23689345,0.00011996,2]
[323264635,1713857440125,-500.0,0.00011996,2]
[323264637,1713857440134,-503.32350494,0.00011996,2]
[323264640,1713857440144,-500.0,0.00011996,2]
[323264643,1713857440155,-500.0,0.00011996,2]
[323264646,1713857440164,-500.0,0.00011996,2]
[323264649,1713857440173,-506.47935853,0.00011996,2]
[323264652,1713857440183,-503.13657075,0.00011996,2]
[323264654,1713857440192,-500.0,0.00011996,2]
[323264656,1713857440201,-500.0,0.00011996,2]
[323264658,1713857440210,-150.0,0.00011996,2]
[323264660,1713857440219,-504.09832341,0.00011996,2]
[323264662,1713857440228,-500.0,0.00011996,2]
[323264664,1713857440237,-502.56897386,0.00011996,2]
[323264666,1713857440247,-500.0,0.00011996,2]
[323264668,1713857440255,-500.0,0.00011996,2]
[323264670,1713857440265,-500.0,0.00011996,2]
[323264672,1713857440274,-503.25539977,0.00011996,2]
[323264674,1713857440283,-500.0,0.00011996,2]
[323264676,1713857440293,-500.0,0.00011996,2]
[323264678,1713857440302,-500.0,0.00011996,2]
[323264680,1713857440311,-500.0,0.00011996,2]
[323264682,1713857440321,-581.26634517,0.00011996,2]
[323264684,1713857440333,-304.67845089,0.00011996,2]
[323264686,1713857440343,-507.62238835,0.00011996,2]
[323264688,1713857440352,-500.0,0.00011996,2]
[323264690,1713857440361,-500.0,0.00011996,2]
[323264692,1713857440371,-501.98009169,0.00011996,2]
[323264694,1713857440380,-500.0,0.00011996,2]
[323264696,1713857440389,-500.0,0.00011996,2]
[323264698,1713857440398,-1238.95,0.00011996,2]
[323264700,1713857440410,-500.0,0.00011996,2]
[323264702,1713857440420,-500.0,0.00011996,2]
[323264704,1713857440429,-500.0,0.00011996,2]
[323264706,1713857440438,-500.0,0.00011996,2]
[323264708,1713857440446,-500.0,0.00011996,2]
[323264711,1713857440457,-505.00928051,0.00011996,2]
[323264712,1713857440466,-533.58956418,0.00011996,2]
[323264715,1713857440476,-500.0,0.00011996,2]
[323264717,1713857440484,-500.0,0.00011996,2]
[323264719,1713857440494,-500.0,0.00011996,2]
[323264721,1713857440502,-500.0,0.00011996,2]
[323264723,1713857440512,-613.3092166,0.00011996,2]
[323264725,1713857440521,-500.0,0.00011996,2]
[323264727,1713857440530,-500.0,0.00011996,2]
[323264729,1713857440539,-500.0,0.00011996,2]
[323264731,1713857440548,-500.0,0.00011996,2]
[323264733,1713857440557,-500.0,0.00011996,2]
[323264735,1713857440566,-503.58604067,0.00011996,2]
[323264737,1713857440575,-500.0,0.00011996,2]
[323264739,1713857440583,-500.0,0.00011996,2]
[323264741,1713857440592,-500.0,0.00011996,2]
[323264743,1713857440602,-226.35515461,0.00011996,2]
[323264745,1713857440611,-500.0,0.00011996,2]
[323264747,1713857440620,-500.0,0.00011996,2]
[323264749,1713857440629,-500.0,0.00011996,2]
[323264751,1713857440637,-500.0,0.00011996,2]
[323264753,1713857440646,-500.0,0.00011996,2]
[323264755,1713857440659,-500.0,0.00011996,2]
[323264757,1713857440668,-1190.59,0.00011996,2]
[323264759,1713857440677,-500.0,0.00011996,2]
[323264761,1713857440686,-460.27817615,0.00011996,2]
[323264763,1713857440694,-500.0,0.00011996,2]
[323264765,1713857440703,-500.0,0.00011996,2]
[323264767,1713857440712,-500.0,0.00011996,2]
[323264769,1713857440721,-500.0,0.00011996,2]
[323264771,1713857440730,-500.0,0.00011996,2]
[323264773,1713857440739,-500.0,0.00011996,2]
[323264775,1713857440748,-500.0,0.00011996,2]
[323264777,1713857440757,-500.0,0.00011996,2]
[323264779,1713857440766,-500.0,0.00011996,2]
[323264781,1713857440775,-47167.72,0.00011996,2]
[323264783,1713857440783,-500.0,0.00011996,2]
[323264785,1713857440792,-500.0,0.00011996,2]
[323264787,1713857440801,-500.0,0.00011996,2]
[323264789,1713857440810,-4545.2,0.00011996,2]
[323264791,1713857440819,-533.39,0.00011996,2]
[323264793,1713857440829,-500.0,0.00011996,2]
[323264795,1713857440838,-500.0,0.00011996,2]
[323264797,1713857440847,-500.0,0.00011996,2]
[323264799,1713857440856,-500.0,0.00011996,2]
[323264801,1713857440865,-500.0,0.00011996,2]
[323264803,1713857440874,-500.0,0.00011996,2]
[323264805,1713857440883,-500.0,0.00011996,2]
[323264807,1713857440892,-500.0,0.00011996,2]
[323264809,1713857440901,-520.88164261,0.00011996,2]
[323264811,1713857440913,-500.0,0.00011996,2]
[323264813,1713857440923,-4302.61,0.00011996,2]
[323264815,1713857440932,-473.30419323,0.00011996,2]
[323264817,1713857440941,-500.0,0.00011996,2]
[323264819,1713857440950,-500.0,0.00011996,2]
[323264821,1713857440959,-500.0,0.00011996,2]
[323264823,1713857440968,-500.0,0.00011996,2]
[323264825,1713857440978,-500.0,0.00011996,2]
[323264843,1713857441225,-500.0,0.00011996,2]
[323264845,1713857441234,-500.0,0.00011996,2]
[323264847,1713857441244,-500.0,0.00011996,2]
[323264849,1713857441253,-500.0,0.00011996,2]
[323264851,1713857441262,-508.48167479,0.00011996,2]
[323264853,1713857441271,-500.0,0.00011996,2]
[323264855,1713857441281,-500.0,0.00011996,2]
[323264857,1713857441290,-500.0,0.00011996,2]
[323264859,1713857441299,-500.0,0.00011996,2]
[323264861,1713857441309,-500.0,0.00011996,2]
[323264863,1713857441325,-654.3,0.00011996,2]
[323264865,1713857441336,-6633.66,0.00011996,2]
[323264867,1713857441346,-500.0,0.00011996,2]
[323264869,1713857441355,-500.0,0.00011996,2]
[323264871,1713857441365,-500.33238296,0.00011996,2]
[323264873,1713857441375,-500.0,0.00011996,2]
[323264875,1713857441385,-500.0,0.00011996,2]
[323264877,1713857441394,-3362.69,0.00011996,2]
[323264879,1713857441409,-500.0,0.00011996,2]
[323264881,1713857441421,-966.14,0.00011996,2]
[323264884,1713857441430,-523.05,0.00011996,2]
[323264886,1713857441439,-500.0,0.00011996,2]
[323264887,1713857441448,-500.0,0.00011996,2]
[323264890,1713857441458,-500.0,0.00011996,2]
[323264892,1713857441467,-500.0,0.00011996,2]
[323264894,1713857441476,-500.0,0.00011996,2]
[323264896,1713857441485,-62791.84,0.00011996,2]
[323264898,1713857441494,-500.0,0.00011996,2]
[323264900,1713857441503,-500.0,0.00011996,2]
[323264902,1713857441511,-500.0,0.00011996,2]
[323264904,1713857441523,-509.14764831,0.00011996,2]
[323264906,1713857441533,-500.0,0.00011996,2]
[323264908,1713857441542,-1101.42,0.00011996,2]
[323264910,1713857441551,-621.16623162,0.00011996,2]
[323264912,1713857441561,-2516.09,0.00011996,2]
[323264914,1713857441571,-500.0,0.00011996,2]
[323264916,1713857441581,-500.0,0.00011996,2]
[323264918,1713857441591,-500.0,0.00011996,2]
[323264920,1713857441601,-500.0,0.00011996,2]
[323264922,1713857441611,-389.3252772,0.00011996,2]
[323264924,1713857441620,-500.0,0.00011996,2]
[323264926,1713857441629,-500.0,0.00011996,2]
[323264928,1713857441639,-500.0,0.00011996,2]
[323264930,1713857441650,-500.0,0.00011996,2]
[323264932,1713857441667,-7279.1,0.00011996,2]
[323264934,1713857441677,-500.0,0.00011996,2]
[323264936,1713857441687,-500.0,0.00011996,2]
[323264938,1713857441697,-500.0,0.00011996,2]
[323264940,1713857441707,-500.0,0.00011996,2]
[323264942,1713857441717,-500.0,0.00011996,2]
[323264944,1713857441730,-10255.5,0.00011996,2]